bitfinex/quotes_SOLUSD_20251103
["timestamp","ask_amount","ask_price","bid_price","bid_amount"]
[1762181545778,0.71,176.59,176.56,7.1716846]
[1762181546563,1e-08,176.6,176.57,7.1716846]
[1762181546764,1e-08,176.6,176.59,7.1716846]
[1762181547068,1e-08,176.6,176.59,12.83451941]
[1762181547685,1e-08,176.6,176.59,7.1716846]
[1762181548267,1e-08,176.6,176.58,7.1716846]
[1762181549187,1e-08,176.6,176.58,12.83479935]
[1762181550203,1e-08,176.6,176.59,7.1716846]
[1762181550494,1e-08,176.6,176.59,7.8316846]
[1762181550978,1e-08,176.6,176.59,6.32283481]
[1762181551179,1e-08,176.6,176.59,13.49451941]
[1762181551598,1e-08,176.6,176.59,12.83451941]
[1762181552382,1e-08,176.6,176.57,5.66340669]
[1762181552578,1e-08,176.6,176.57,12.83509129]
[1762181552775,1e-08,176.6,176.58,7.1716846]
[1762181553179,11.63016958,176.59,176.51,19.82890487]
[1762181553392,7.1716846,176.57,176.51,12.83708599]
[1762181553589,7.1716846,176.57,176.49,0.69]
[1762181553777,7.1716846,176.51,176.42,0.69]
[1762181553986,7.1716846,176.49,176.44,7.1716846]
[1762181554195,10.95016958,176.52,176.46,7.1716846]
[1762181554504,55.40310623,176.55,176.44,7.1716846]
[1762181554505,7.1716846,176.5,176.44,7.1716846]
[1762181554796,7.1716846,176.5,176.45,7.1716846]
[1762181554797,10.95016958,176.5,176.45,7.1716846]
[1762181555003,7.1716846,176.51,176.45,7.1716846]
[1762181555204,3.77744196,176.5,176.46,12.83869128]
[1762181555405,7.1716846,176.5,176.39,0.69]
[1762181555597,7.1716846,176.48,176.4,0.69]
[1762181555913,4.45744196,176.49,176.4,0.69]
[1762181555914,7.1716846,176.46,176.4,7.1716846]
[1762181556079,3.77744196,176.46,176.42,7.1716846]
[1762181556282,0.68,176.47,176.39,0.69]
[1762181556487,11.62912656,176.47,176.41,7.1716846]
[1762181556672,11.62912656,176.47,176.39,0.69]
[1762181556673,3.77744196,176.46,176.43,7.1716846]
[1762181556874,0.68,176.52,176.45,7.1716846]
[1762181557214,3.77497201,176.51,176.49,7.1716846]
[1762181557376,0.68,176.51,176.49,7.1716846]
[1762181557698,0.68,176.5,176.49,7.1716846]
[1762181557878,3.77497201,176.52,176.49,7.1716846]
[1762181558078,3.77497201,176.54,176.51,7.1716846]
[1762181558296,3.77497201,176.53,176.5,7.1716846]
[1762181558505,3.77497201,176.54,176.47,5.66665889]
[1762181558695,3.77497201,176.53,176.49,7.1716846]
[1762181559010,4.45497201,176.53,176.5,7.1716846]
[1762181559183,0.68,176.53,176.5,7.1716846]
[1762181559384,0.68,176.52,176.49,7.1716846]
[1762181560403,0.68,176.52,176.47,7.1716846]
[1762181560602,70.592,176.57,176.49,7.1716846]
[1762181560603,0.68,176.54,176.49,7.1716846]
[1762181560786,10.94665661,176.54,176.49,7.1716846]
[1762181560985,0.68,176.53,176.49,7.1716846]
[1762181561280,0.68,176.53,176.5,7.1716846]
[1762181561998,7.8516846,176.53,176.46,6.35692755]
[1762181562299,7.8516846,176.53,176.42,28.34069852]
[1762181562300,50.0,176.51,176.42,5.66824858]
[1762181562485,10.94665661,176.5,176.41,6.35844525]
[1762181562675,7.1716846,176.49,176.43,7.1716846]
[1762181562877,0.68,176.49,176.44,7.1716846]
[1762181563073,3.77497201,176.5,176.46,7.1716846]
[1762181563276,0.68,176.52,176.42,0.69]
[1762181563277,4.45497201,176.52,176.48,7.1716846]
[1762181563491,0.68,176.52,176.48,7.1716846]
[1762181563773,0.68,176.51,176.48,7.1716846]
[1762181563978,0.68,176.51,176.47,12.83822676]
[1762181564391,0.68,176.51,176.47,4.83219037]
[1762181565105,0.68,176.51,176.46,10.49914086]
[1762181565310,0.68,176.51,176.46,4.83219037]
[1762181565484,0.68,176.51,176.46,10.49914538]
[1762181565681,0.68,176.51,176.46,4.83219037]
[1762181566410,5.51219037,176.51,176.46,4.83219037]
[1762181566705,5.51219037,176.51,176.45,5.66731763]
[1762181566706,4.83219037,176.5,176.45,10.499508]
[1762181566883,5.51219037,176.5,176.45,10.499508]
[1762181567076,5.51219037,176.5,176.45,4.83219037]
[1762181567077,0.68,176.49,176.45,4.83219037]
[1762181567272,0.68,176.49,176.43,5.66797029]
[1762181567501,0.68,176.49,176.45,4.83219037]
[1762181568001,3.77497201,176.52,176.47,4.83219037]
[1762181568198,4.45497201,176.52,176.47,4.83219037]
[1762181568405,0.68,176.51,176.47,4.83219037]
[1762181568720,3.77497201,176.52,176.48,4.83219037]
[1762181568917,3.77497201,176.53,176.49,4.83219037]
[1762181569220,4.45497201,176.53,176.48,4.83219037]
[1762181569707,0.68,176.52,176.48,4.83219037]
[1762181570717,3.77497201,176.53,176.5,4.83219037]
[1762181570882,0.68,176.52,176.48,4.83219037]
[1762181571204,0.68,176.52,176.46,6.35699778]
[1762181571205,3.77497201,176.54,176.51,4.83219037]
[1762181571398,0.68,176.56,176.53,4.83219037]
[1762181571780,0.68,176.56,176.52,4.83219037]
[1762181572098,50.68,176.56,176.49,4.83219037]
[1762181572285,3.77497201,176.55,176.49,4.83219037]
[1762181572482,4.45497201,176.55,176.49,4.83219037]
[1762181572686,0.68,176.54,176.49,4.83219037]
[1762181573298,0.68,176.54,176.48,4.83219037]
[1762181573692,58.60716238,176.53,176.44,0.69]
[1762181574017,8.60716238,176.52,176.45,4.83219037]
[1762181574191,9.28716238,176.52,176.45,4.83219037]
[1762181574388,3.77497201,176.52,176.48,4.83219037]
[1762181574609,4.45497201,176.54,176.49,4.83219037]
[1762181575012,4.45497201,176.54,176.46,0.69]
[1762181575013,0.68,176.53,176.5,4.83219037]
[1762181576517,0.68,176.53,176.49,4.83219037]
[1762181577219,4.45497201,176.53,176.48,4.83219037]
[1762181577528,3.77497201,176.52,176.41,25.42419037]
[1762181577740,50.0,176.51,176.45,4.83219037]
[1762181577923,3.77497201,176.5,176.45,4.83219037]
[1762181578231,54.45497201,176.51,176.45,4.83219037]
[1762181578527,3.77497201,176.5,176.46,4.83219037]
[1762181578822,0.68,176.51,176.45,5.52219037]
[1762181578995,4.45497201,176.51,176.45,4.83219037]
[1762181580017,4.45497201,176.51,176.45,10.49944582]
[1762181580211,24.36697201,176.52,176.48,4.83219037]
[1762181580423,20.592,176.52,176.48,4.83219037]
[1762181580633,4.97435194,176.56,176.49,4.83219037]
[1762181580928,4.45142176,176.55,176.49,4.83219037]
[1762181581110,0.68,176.55,176.51,4.83219037]
[1762181581308,3.77142176,176.56,176.54,4.83219037]
[1762181581526,3.77142176,176.58,176.55,4.83219037]
[1762181581804,0.68,176.58,176.48,0.69]
[1762181582016,0.68,176.57,176.53,4.83219037]
[1762181582311,0.68,176.57,176.48,0.69]
[1762181582312,3.77142176,176.57,176.55,4.83219037]
[1762181582505,3.77142176,176.59,176.55,4.83219037]
[1762181582722,3.77142176,176.59,176.48,19.83219026]
[1762181582723,3.77142176,176.58,176.54,4.83219037]
[1762181583121,4.43142176,176.58,176.54,4.83219037]
[1762181583424,3.77142176,176.59,176.48,19.83219026]
[1762181583626,50.66,176.57,176.48,6.33627911]
[1762181583810,3.77142176,176.56,176.48,6.33635409]
[1762181584125,4.43142176,176.56,176.5,4.83219037]
[1762181584305,3.77142176,176.56,176.5,4.83219037]
[1762181584508,0.66,176.55,176.51,4.83219037]
[1762181585626,3.77142176,176.57,176.54,4.83219037]
[1762181585813,3.77142176,176.58,176.54,4.83219037]
[1762181586015,4.43142176,176.58,176.54,4.83219037]
[1762181586222,0.66,176.57,176.54,4.83219037]
[1762181586421,6.73369654,176.6,176.56,4.83219037]
[1762181586617,6.73369654,176.6,176.46,38.12341963]
[1762181586618,3.77142177,176.6,176.58,4.83219037]
[1762181586812,1e-08,176.6,176.58,4.83219037]
[1762181587217,1e-08,176.6,176.59,4.83219037]
[1762181587616,1e-08,176.6,176.59,5.50219037]
[1762181587815,0.1,176.65,176.59,5.50219037]
[1762181588028,0.1,176.65,176.64,4.83219037]
[1762181589142,0.1,176.65,176.62,0.67]
[1762181589338,0.1,176.65,176.64,4.83219037]
[1762181590536,0.1,176.65,176.64,10.49342225]
[1762181590712,0.1,176.65,176.64,11.16342225]
[1762181591529,3.77142176,176.73,176.64,11.16342225]
[1762181591530,3.77142176,176.73,176.64,25.31650196]
[1762181591741,4.43142176,176.74,176.7,4.83219037]
[1762181591923,4.43142176,176.74,176.69,4.83219037]
[1762181591924,0.66,176.73,176.69,4.83219037]
[1762181592122,4.43142176,176.73,176.69,4.83219037]
[1762181592532,0.66,176.72,176.69,4.83219037]
[1762181593240,50.66,176.72,176.68,4.83219037]
[1762181593535,3.76867362,176.71,176.66,4.83219037]
[1762181593727,4.42867362,176.71,176.66,4.83219037]
[1762181594037,0.66,176.7,176.65,4.83219037]
[1762181594816,0.66,176.7,176.66,4.83219037]
[1762181595324,3.76867362,176.71,176.66,4.83219037]
[1762181595325,0.66,176.69,176.66,4.83219037]
[1762181595636,3.76867362,176.71,176.66,4.83219037]
[1762181595836,0.66,176.7,176.66,4.83219037]
[1762181596338,4.83219037,176.69,176.62,4.83219037]
[1762181596550,4.83219037,176.69,176.61,0.67]
[1762181596551,3.76867362,176.69,176.63,4.83219037]
[1762181596719,4.42867362,176.69,176.63,4.83219037]
[1762181597419,0.66,176.68,176.63,4.83219037]
[1762181598022,3.76867362,176.69,176.65,4.83219037]
[1762181598226,50.66,176.69,176.64,4.83219037]
[1762181598424,4.42867362,176.68,176.64,4.83219037]
[1762181598649,4.42867362,176.68,176.63,4.83219037]
[1762181598822,0.66,176.67,176.62,4.83219037]
[1762181599033,8.60086399,176.68,176.63,4.83219037]
[1762181599034,3.76867362,176.68,176.63,4.83219037]
[1762181599344,0.66,176.68,176.63,5.50219037]
[1762181599830,0.66,176.68,176.64,4.83219037]
[1762181600150,3.76867362,176.7,176.65,4.83219037]
[1762181600151,4.42867362,176.7,176.65,4.83219037]
[1762181600455,0.66,176.7,176.65,4.83219037]
[1762181600663,0.66,176.69,176.65,4.83219037]
[1762181601324,4.42867362,176.71,176.66,4.83219037]
[1762181601649,59.26086399,176.71,176.65,4.83219037]
[1762181601942,3.76867362,176.7,176.65,4.83219037]
[1762181602258,0.66,176.7,176.65,4.83219037]
[1762181602426,0.66,176.69,176.64,4.83219037]
[1762181603046,0.66,176.69,176.64,5.50219037]
[1762181603356,5.49219037,176.69,176.63,4.83219037]
[1762181603527,54.83219037,176.68,176.61,0.67]
[1762181603727,3.7670667,176.67,176.62,4.83219037]
[1762181604035,3.7670667,176.69,176.64,4.83219037]
[1762181604237,0.66,176.69,176.64,4.83219037]
[1762181604453,0.66,176.68,176.62,4.83219037]
[1762181604757,3.7670667,176.69,176.64,4.83219037]
[1762181605137,5.49219037,176.69,176.64,5.50219037]
[1762181605333,0.66,176.68,176.63,4.83219037]
[1762181605639,0.66,176.68,176.61,20.48744928]
[1762181605640,4.83219037,176.68,176.62,0.67]
[1762181605950,4.83219037,176.68,176.62,5.50219037]
[1762181606457,9.25925707,176.69,176.63,5.50219037]
[1762181606962,5.49219037,176.69,176.63,5.50219037]
[1762181607165,8.59925707,176.7,176.64,4.83219037]
[1762181607468,9.26925707,176.7,176.64,4.83219037]
[1762181607772,4.83219037,176.69,176.63,5.54219037]
[1762181608872,4.83219037,176.68,176.63,0.71]
[1762181609376,4.83219037,176.65,176.59,4.83219037]
[1762181609581,4.83219037,176.65,176.6,0.71]
[1762181609858,4.83219037,176.66,176.6,5.54219037]
[1762181610058,4.83219037,176.67,176.61,4.83219037]
[1762181610270,4.83219037,176.67,176.61,5.54219037]
[1762181610440,4.83219037,176.67,176.61,0.71]
[1762181610641,4.83219037,176.66,176.61,0.71]
[1762181611453,4.83219037,176.65,176.59,4.83219037]
[1762181611657,5.50219037,176.65,176.59,4.83219037]
[1762181611952,5.50219037,176.65,176.59,11.20501644]
[1762181612371,4.83219037,176.65,176.59,10.49501644]
[1762181612669,4.83219037,176.64,176.59,0.67]
[1762181612840,0.72,176.65,176.59,0.67]
[1762181612841,4.83219037,176.65,176.59,5.50219037]
[1762181613051,25.42419037,176.66,176.6,4.83219037]
[1762181613364,25.42419037,176.66,176.6,5.50219037]
[1762181613561,3.7710005,176.65,176.61,0.67]
[1762181613764,4.83219037,176.67,176.61,5.50219037]
[1762181614273,3.77238358,176.68,176.64,4.83219037]
[1762181614568,5.55219037,176.7,176.64,4.83219037]
[1762181614763,8.60457395,176.7,176.64,4.83219037]
[1762181615075,5.55219037,176.69,176.63,4.83219037]
[1762181615455,5.55219037,176.69,176.63,5.50219037]
[1762181615768,0.72,176.69,176.64,4.83219037]
[1762181615960,4.83219037,176.7,176.64,5.50219037]
[1762181616145,4.83219037,176.69,176.64,0.67]
[1762181616345,4.83219037,176.68,176.62,4.83219037]
[1762181616551,4.83219037,176.66,176.61,0.67]
[1762181616750,4.83219037,176.66,176.61,6.33211148]
[1762181617275,4.83219037,176.67,176.61,11.16430185]
[1762181617649,4.83219037,176.67,176.61,0.67]
[1762181617854,4.83219037,176.66,176.61,0.67]
[1762181618272,5.55219037,176.65,176.59,5.50219037]
[1762181618864,5.55219037,176.65,176.59,11.16483604]
[1762181619061,5.55219037,176.65,176.59,5.50219037]
[1762181619377,4.49238358,176.66,176.6,0.67]
[1762181619674,4.83219037,176.65,176.6,0.67]
[1762181619868,5.55219037,176.66,176.6,5.50219037]
[1762181620261,4.83219037,176.65,176.6,0.67]
[1762181620463,9.32457395,176.66,176.6,5.50219037]
[1762181621052,4.83219037,176.65,176.6,0.67]
[1762181621279,4.83219037,176.63,176.57,0.67]
[1762181621470,4.83219037,176.62,176.57,0.67]
[1762181621783,4.83219037,176.63,176.57,5.50219037]
[1762181621966,4.83219037,176.63,176.57,0.67]
[1762181622168,4.83219037,176.63,176.58,0.67]
[1762181622368,8.60457395,176.63,176.58,0.67]
[1762181622762,4.83219037,176.63,176.58,0.67]
[1762181622978,8.60457395,176.63,176.58,0.67]
[1762181623183,4.83219037,176.6,176.54,0.67]
[1762181623669,4.83219037,176.6,176.53,0.67]
[1762181623670,8.60457395,176.59,176.53,0.67]
[1762181623861,9.32457395,176.59,176.53,4.83219037]
[1762181624061,4.83219037,176.59,176.53,5.50219037]
[1762181624261,8.60457395,176.59,176.53,5.50219037]
[1762181624485,3.77238358,176.58,176.53,0.67]
[1762181624671,3.77238358,176.58,176.53,7.83356281]
[1762181624981,0.72,176.6,176.54,0.67]
[1762181624982,3.77238358,176.59,176.54,0.67]
[1762181625180,3.77238358,176.58,176.54,0.67]
[1762181625782,7.16356281,176.59,176.54,0.67]
[1762181625984,3.78526027,176.58,176.54,0.67]
[1762181626283,3.78526027,176.58,176.54,13.49799593]
[1762181626464,10.94882308,176.59,176.54,13.49799593]
[1762181626667,3.78526027,176.58,176.54,7.83356281]
[1762181626870,3.78526027,176.58,176.55,0.67]
[1762181628174,3.78526027,176.58,176.55,7.83356281]
[1762181628375,3.78526027,176.6,176.55,7.83356281]
[1762181628573,3.78526027,176.59,176.55,7.83356281]
[1762181628770,3.78526027,176.58,176.55,7.83356281]
[1762181628976,10.94882308,176.59,176.53,7.16356281]
[1762181629170,3.78526027,176.58,176.53,7.16356281]
[1762181629474,3.78526027,176.58,176.54,0.67]
[1762181630294,3.78526027,176.58,176.42,9.78882769]
[1762181630295,7.16356281,176.55,176.42,9.78882769]
[1762181630477,10.94882308,176.54,176.49,0.67]
[1762181630670,7.16356281,176.54,176.49,0.67]
[1762181631178,3.78929944,176.54,176.49,0.67]
[1762181631362,3.78929944,176.57,176.53,7.16356281]
[1762181631560,3.78929944,176.56,176.52,7.16356281]
[1762181631761,3.78929944,176.57,176.52,7.83356281]
[1762181631999,3.78929944,176.57,176.51,5.66513256]
[1762181632000,3.78929944,176.56,176.54,7.16356281]
[1762181632333,11.89513815,176.59,176.54,7.16356281]
[1762181632334,3.78929944,176.58,176.54,7.16356281]
[1762181632470,3.78929944,176.57,176.54,7.16356281]
[1762181632674,10.95286225,176.58,176.53,7.16356281]
[1762181632899,3.78929944,176.57,176.52,7.83356281]
[1762181633402,3.78929944,176.56,176.52,0.67]
[1762181633699,10.95286225,176.56,176.52,0.67]
[1762181633993,10.95286225,176.56,176.5,5.66569893]
[1762181634197,3.78929944,176.55,176.51,7.16356281]
[1762181634405,3.78929944,176.55,176.52,7.16356281]
[1762181634694,32.72,176.61,176.54,7.16356281]
[1762181634870,3.78653577,176.6,176.55,7.16356281]
[1762181635070,3.78653577,176.59,176.55,7.16356281]
[1762181635299,3.78653577,176.58,176.54,7.16356281]
[1762181635495,7.88356281,176.59,176.54,7.16356281]
[1762181635702,11.67009858,176.59,176.55,0.67]
[1762181635872,3.78653577,176.58,176.54,7.16356281]
[1762181636080,7.88356281,176.59,176.54,7.16356281]
[1762181636286,7.16356281,176.59,176.55,0.67]
[1762181636496,10.95009858,176.59,176.55,0.67]
[1762181636718,3.78653577,176.58,176.55,7.83356281]
[1762181637011,10.95009858,176.6,176.55,0.67]
[1762181637222,11.67009858,176.6,176.55,0.67]
[1762181637518,3.78653577,176.59,176.55,0.67]
[1762181637684,11.67009858,176.59,176.53,7.16356281]
[1762181637881,10.95009858,176.58,176.51,5.66530051]
[1762181638099,3.78653577,176.57,176.52,7.83356281]
[1762181638297,7.16356281,176.56,176.52,0.67]
[1762181638488,10.95009858,176.56,176.52,0.67]
[1762181638688,7.16356281,176.55,176.5,13.49920599]
[1762181638919,7.16356281,176.57,176.51,7.83356281]
[1762181639213,7.16356281,176.56,176.51,7.83356281]
[1762181639517,7.16356281,176.56,176.51,13.4988657]
[1762181639711,7.16356281,176.56,176.52,0.67]
[1762181639908,10.95045109,176.57,176.52,0.67]
[1762181640110,3.78688828,176.57,176.52,7.83356281]
[1762181640311,3.78688828,176.58,176.54,7.16356281]
[1762181640622,10.95045109,176.57,176.52,7.83356281]
[1762181640914,3.78688828,176.57,176.53,7.16356281]
[1762181641099,11.67045109,176.58,176.53,7.83356281]
[1762181641989,11.67045109,176.58,176.53,0.67]
[1762181642283,3.78688828,176.58,176.54,0.7]
[1762181642483,32.0,176.59,176.55,7.16356281]
[1762181642683,70.592,176.64,176.57,7.16356281]
[1762181642684,5.39157534,176.64,176.57,7.16356281]
[1762181642898,11.61168046,176.63,176.57,7.16356281]
[1762181643102,3.78811765,176.62,176.58,7.16356281]
[1762181643499,3.78811765,176.62,176.6,7.16356281]
[1762181643701,8.35281783,176.66,176.62,5.66187294]
[1762181643702,3.78811765,176.64,176.62,5.66187294]
[1762181643903,3.78811765,176.67,176.63,7.16356281]
[1762181644101,3.78811765,176.68,176.65,7.16356281]
[1762181644291,3.78811765,176.67,176.65,7.16356281]
[1762181644606,4.44811765,176.69,176.65,7.16356281]
[1762181644787,3.78811765,176.68,176.65,7.16356281]
[1762181644988,0.66,176.69,176.65,7.16356281]
[1762181644989,3.78811765,176.67,176.65,7.16356281]
[1762181645188,7.69170953,176.7,176.65,7.86356281]
[1762181645189,3.78811765,176.68,176.65,7.86356281]
[1762181645404,3.78811765,176.67,176.66,0.7]
[1762181645586,3.78811765,176.69,176.66,7.86356281]
[1762181645795,3.78811765,176.68,176.66,0.7]
[1762181646110,3.78811765,176.67,176.66,0.7]
[1762181646302,3.78811765,176.69,176.66,13.52405641]
[1762181646511,3.78811765,176.68,176.67,7.16356281]
[1762181646711,3.78811765,176.68,176.67,7.86356281]
[1762181646922,3.78811765,176.7,176.67,7.86356281]
[1762181647217,3.78811765,176.7,176.68,7.86356281]
[1762181647413,3.78811765,176.69,176.68,0.7]
[1762181647620,3.78811765,176.7,176.68,0.7]
[1762181647792,3.78811765,176.69,176.68,0.7]
[1762181648109,3.78811765,176.7,176.68,0.7]
[1762181648416,3.78811765,176.69,176.68,0.7]
[1762181648595,3.78811765,176.7,176.68,0.7]
[1762181648794,3.78811765,176.69,176.68,0.7]
[1762181649009,3.78811765,176.7,176.68,0.7]
[1762181649217,3.78811765,176.69,176.68,0.7]
[1762181649523,2.95996873,176.71,176.68,7.86356281]
[1762181649693,3.79145018,176.72,176.68,7.86356281]
[1762181649896,7.16356281,176.76,176.7,7.16356281]
[1762181650110,6.75105348,176.75,176.7,7.16356281]
[1762181650316,27.34305348,176.75,176.7,7.16356281]
[1762181650624,3.79161935,176.74,176.7,7.16356281]
[1762181650799,3.79161935,176.74,176.7,7.86356281]
[1762181651522,3.79161935,176.74,176.7,7.16356281]
[1762181651725,3.79161935,176.74,176.71,0.7]
[1762181651923,4.73157534,176.79,176.73,7.16356281]
[1762181652243,6.74718088,176.78,176.73,7.16356281]
[1762181652446,13.91074369,176.78,176.73,7.86356281]
[1762181652620,3.78833268,176.77,176.73,7.86356281]
[1762181653018,7.40718088,176.78,176.73,7.86356281]
[1762181653231,3.78833268,176.78,176.76,7.16356281]
[1762181653438,4.44833268,176.81,176.76,7.16356281]
[1762181653642,0.66,176.8,176.77,7.16356281]
[1762181654152,0.66,176.8,176.74,0.7]
[1762181654314,7.82356281,176.79,176.73,0.7]
[1762181654517,7.16356281,176.78,176.72,7.16356281]
[1762181654840,10.95189549,176.78,176.72,7.16356281]
[1762181655149,10.95189549,176.78,176.73,7.86356281]
[1762181655524,7.16356281,176.77,176.68,5.65978082]
[1762181655852,7.16356281,176.76,176.7,7.86356281]
[1762181656225,11.61189549,176.76,176.69,5.65944816]
[1762181656430,10.95189549,176.76,176.7,7.16356281]
[1762181656628,10.95189549,176.76,176.69,0.7]
[1762181656629,7.16356281,176.74,176.69,7.86356281]
[1762181657040,7.16356281,176.74,176.7,0.7]
[1762181657246,0.66,176.73,176.65,0.7]
[1762181657546,7.16356281,176.69,176.65,0.7]
[1762181657918,7.16356281,176.7,176.65,0.7]
[1762181658540,7.16356281,176.7,176.65,7.86356281]
[1762181658743,7.16356281,176.71,176.66,7.16356281]
[1762181659122,3.77846664,176.72,176.68,7.16356281]
[1762181659452,11.60202945,176.75,176.7,7.16356281]
[1762181659749,0.66,176.74,176.7,7.16356281]
[1762181659943,0.66,176.74,176.69,7.16356281]
[1762181660247,3.77846664,176.75,176.73,7.16356281]
[1762181660421,0.66,176.77,176.73,7.16356281]
[1762181661842,7.82356281,176.77,176.72,7.16356281]
[1762181662144,11.60415646,176.77,176.72,7.16356281]
[1762181662351,11.60415646,176.77,176.72,7.86356281]
[1762181662736,4.44059365,176.77,176.73,7.16356281]
[1762181662942,3.78059365,176.77,176.73,7.16356281]
[1762181663342,7.16356281,176.78,176.73,7.16356281]
[1762181663534,7.82356281,176.78,176.73,7.16356281]
[1762181663734,0.66,176.77,176.69,6.35962986]
[1762181663935,11.60415646,176.77,176.72,7.16356281]
[1762181664134,7.82356281,176.77,176.72,7.16356281]
[1762181664740,7.16356281,176.78,176.73,7.86356281]
[1762181664922,3.77812245,176.78,176.74,7.16356281]
[1762181665122,0.66,176.78,176.74,7.16356281]
[1762181665325,7.82356281,176.78,176.73,7.86356281]
[1762181665530,11.59902275,176.78,176.73,7.86356281]
[1762181665731,60.93902275,176.78,176.69,5.65962986]
[1762181665932,7.82356281,176.77,176.72,7.16356281]
[1762181666358,7.82356281,176.77,176.72,7.86356281]
[1762181666659,7.16356281,176.73,176.67,0.72]
[1762181666860,7.16356281,176.72,176.67,0.72]
[1762181667031,7.16356281,176.71,176.67,0.72]
[1762181667361,7.16356281,176.71,176.64,5.66123188]
[1762181667562,7.16356281,176.7,176.65,7.88356281]
[1762181667751,50.72,176.73,176.65,0.72]
[1762181667752,7.16356281,176.69,176.65,0.72]
[1762181668065,7.16356281,176.67,176.63,0.72]
[1762181668351,7.16356281,176.66,176.64,0.72]
[1762181668658,7.16356281,176.65,176.6,0.72]
[1762181668966,7.16356281,176.65,176.58,12.82665038]
[1762181668967,7.16356281,176.65,176.61,0.72]
[1762181669462,0.72,176.64,176.57,5.66343179]
[1762181669652,7.16356281,176.6,176.47,0.2]
[1762181669841,7.16356281,176.58,176.49,17.02948939]
[1762181670045,0.14216157,176.6,176.49,17.02948939]
[1762181670356,7.16356281,176.57,176.5,0.72]
[1762181670571,7.16356281,176.54,176.49,7.16356281]
[1762181670862,7.16356281,176.54,176.48,0.72]
[1762181670863,7.16356281,176.52,176.48,0.72]
[1762181671075,7.16356281,176.51,176.47,0.2]
[1762181671258,50.14216157,176.56,176.47,0.92]
[1762181671446,7.16356281,176.52,176.47,6.58663282]
[1762181671650,7.16356281,176.52,176.47,0.92]
[1762181671848,7.16356281,176.52,176.48,0.72]
[1762181672072,7.16356281,176.49,176.47,0.2]
[1762181672250,0.72,176.51,176.47,0.2]
[1762181672440,7.16356281,176.52,176.47,7.36356281]
[1762181672635,9.78882769,176.55,176.47,7.36356281]
[1762181672636,7.16356281,176.55,176.49,7.16356281]
[1762181672858,7.16356281,176.54,176.49,7.16356281]
[1762181673062,7.88356281,176.54,176.49,7.16356281]
[1762181673236,3.76901452,176.55,176.5,7.86356281]
[1762181673441,78.47556281,176.56,176.5,7.16356281]
[1762181673658,7.16356281,176.55,176.5,7.16356281]
[1762181674177,7.88356281,176.55,176.5,7.16356281]
[1762181674343,50.0,176.58,176.51,7.86356281]
[1762181674544,7.88356281,176.62,176.56,7.16356281]
[1762181674754,7.16356281,176.6,176.55,7.16356281]
[1762181675050,10.93229651,176.6,176.55,7.16356281]
[1762181675250,0.72,176.59,176.54,7.16356281]
[1762181675565,50.72,176.59,176.54,7.16356281]
[1762181675771,0.72,176.59,176.55,7.16356281]
[1762181676078,20.592,176.6,176.55,7.16356281]
[1762181676248,7.16356281,176.58,176.53,7.16356281]
[1762181676453,7.16356281,176.58,176.52,7.16356281]
[1762181676647,50.72,176.57,176.47,0.2]
[1762181676873,7.16356281,176.54,176.49,7.16356281]
[1762181677263,0.72,176.56,176.5,7.86356281]
[1762181677463,7.16356281,176.55,176.5,7.16356281]
[1762181677658,0.72,176.56,176.5,7.16356281]
[1762181677855,7.16356281,176.55,176.48,0.7]
[1762181678059,7.16356281,176.55,176.5,7.16356281]
[1762181678253,20.592,176.56,176.5,7.16356281]
[1762181678457,20.592,176.56,176.51,7.86356281]
[1762181678659,7.16356281,176.57,176.51,7.86356281]
[1762181678957,27.75556281,176.56,176.5,7.16356281]
[1762181679352,27.75556281,176.56,176.5,7.86356281]
[1762181679757,27.75556281,176.56,176.5,13.52928277]
[1762181679968,27.75556281,176.56,176.5,7.86356281]
[1762181680166,7.16356281,176.54,176.48,12.82981284]
[1762181680358,7.16356281,176.54,176.48,13.52981284]
[1762181680560,7.16356281,176.54,176.48,7.86356281]
[1762181680751,7.16356281,176.54,176.48,0.7]
[1762181681155,7.16356281,176.53,176.47,0.2]
[1762181681364,7.16356281,176.5,176.47,0.2]
[1762181681880,7.16356281,176.49,176.47,0.2]
[1762181683380,50.72,176.51,176.47,0.2]
[1762181683567,7.16356281,176.5,176.47,0.2]
[1762181683773,7.16356281,176.49,176.47,0.2]
[1762181684482,7.88356281,176.48,176.47,0.2]
[1762181685688,7.30572438,176.48,176.47,0.2]
[1762181685858,7.30572438,176.49,176.47,0.2]